fUST/lending_fUST_20240906
["ID","MTS","AMOUNT","RATE_DAILY","PERIOD"]
[337375524,1725634251549,-500.0,0.0002,2]
[337375526,1725634251560,-630.9120223,0.0002,2]
[337375528,1725634251569,-1107.21,0.0002,2]
[337375530,1725634251579,-500.0,0.0002,2]
[337375533,1725634251590,-500.0,0.0002,2]
[337375535,1725634251599,-742.7,0.0002,2]
[337375537,1725634251609,-509.63,0.0002,2]
[337375539,1725634251621,-806.17,0.0002,2]
[337375541,1725634251632,-1025.63,0.0002,2]
[337375543,1725634251642,-1110.12,0.0002,2]
[337375545,1725634251653,-500.0,0.0002,2]
[337375547,1725634251662,-500.0,0.0002,2]
[337375549,1725634251672,-500.0,0.0002,2]
[337375551,1725634251682,-1341.74,0.0002,2]
[337375553,1725634251692,-500.0,0.0002,2]
[337375555,1725634251701,-500.0,0.0002,2]
[337375557,1725634251711,-500.0,0.0002,2]
[337375559,1725634251721,-500.0,0.0002,2]
[337375561,1725634251731,-1912.01,0.0002,2]
[337375563,1725634251741,-506.97082723,0.0002,2]
[337375565,1725634251751,-500.0,0.0002,2]
[337375567,1725634251761,-500.0,0.0002,2]
[337375569,1725634251771,-560.53,0.0002,2]
[337375571,1725634251780,-500.0,0.0002,2]
[337375573,1725634251789,-500.0,0.0002,2]
[337375575,1725634251799,-993.14,0.0002,2]
[337375577,1725634251810,-500.0,0.0002,2]
[337375579,1725634251819,-500.0,0.0002,2]
[337375581,1725634251829,-936.3,0.0002,2]
[337375584,1725634251840,-500.0,0.0002,2]
[337375586,1725634251849,-1292.57,0.0002,2]
[337375588,1725634251859,-867.01,0.0002,2]
[337375590,1725634251868,-515.26,0.0002,2]
[337375592,1725634251877,-500.0,0.0002,2]
[337375594,1725634251886,-1139.41,0.0002,2]
[337375596,1725634251895,-693.45,0.0002,2]
[337375598,1725634251905,-606.89,0.0002,2]
[337375600,1725634251914,-727.28,0.0002,2]
[337375602,1725634251926,-500.0,0.0002,2]
[337375604,1725634251936,-1451.96,0.0002,2]
[337375606,1725634251949,-406.95413919,0.0002,2]
[337375608,1725634251959,-62882.5,0.0002,2]
[337375610,1725634251969,-500.0,0.0002,2]
[337375612,1725634251978,-500.0,0.0002,2]
[337375615,1725634251989,-1617.36,0.0002,2]
[337375617,1725634252000,-500.0,0.0002,2]
[337375619,1725634252010,-743.58,0.0002,2]
[337375621,1725634252021,-500.0,0.0002,2]
[337375623,1725634252031,-1351.51,0.0002,2]
[337375625,1725634252042,-1041.86,0.0002,2]
[337375628,1725634252054,-500.0,0.0002,2]
[337375630,1725634252064,-1721.2,0.0002,2]
[337375632,1725634252074,-500.0,0.0002,2]
[337375634,1725634252083,-500.0,0.0002,2]
[337375636,1725634252093,-4605.35,0.0002,2]
[337375638,1725634252102,-1114.14,0.0002,2]
[337375640,1725634252112,-1017.62,0.0002,2]
[337375642,1725634252122,-500.0,0.0002,2]
[337375644,1725634252131,-500.0,0.0002,2]
[337375646,1725634252140,-335.81,0.0002,2]
[337375648,1725634252150,-500.0,0.0002,2]
[337375650,1725634252159,-513.25198422,0.0002,2]
[337375652,1725634252169,-1507.48,0.0002,2]
[337375654,1725634252178,-1086.64,0.0002,2]
[337375656,1725634252187,-1118.55,0.0002,2]
[337375658,1725634252199,-500.0,0.0002,2]
[337375660,1725634252208,-1850.56,0.0002,2]
[337375662,1725634252217,-1084.25,0.0002,2]
[337375664,1725634252227,-1624.76,0.0002,2]
[337375666,1725634252238,-530.32,0.0002,2]
[337375669,1725634252248,-500.0,0.0002,2]
[337375671,1725634252259,-500.0,0.0002,2]
[337375673,1725634252269,-500.0,0.0002,2]
[337375675,1725634252278,-1063.88,0.0002,2]
[337375677,1725634252291,-500.0,0.0002,2]
[337375679,1725634252300,-500.0,0.0002,2]
[337375681,1725634252310,-500.0,0.0002,2]
[337375683,1725634252320,-500.0,0.0002,2]
[337375685,1725634252333,-500.0,0.0002,2]
[337375687,1725634252344,-1178.58,0.0002,2]
[337375689,1725634252354,-984.17,0.0002,2]
[337375691,1725634252367,-500.0,0.0002,2]
[337375693,1725634252376,-1669.57,0.0002,2]
[337375695,1725634252386,-774.33,0.0002,2]
[337375697,1725634252395,-500.0,0.0002,2]
[337375699,1725634252405,-500.0,0.0002,2]
[337375701,1725634252415,-1002.38,0.0002,2]
[337375704,1725634252424,-636.46,0.0002,2]
[337375706,1725634252434,-753.25,0.0002,2]
[337375708,1725634252445,-500.0,0.0002,2]
[337375710,1725634252457,-521.35,0.0002,2]
[337375712,1725634252466,-711.03,0.0002,2]
[337375714,1725634252476,-500.0,0.0002,2]
[337375716,1725634252485,-500.0,0.0002,2]
[337375718,1725634252495,-500.0,0.0002,2]
[337375720,1725634252504,-500.0,0.0002,2]
[337375722,1725634252513,-643.68,0.0002,2]
[337375724,1725634252524,-1297.23,0.0002,2]
[337375726,1725634252534,-500.0,0.0002,2]
[337375728,1725634252548,-917.27,0.0002,2]
[337375731,1725634252560,-500.0,0.0002,2]
[337375733,1725634252570,-500.0,0.0002,2]
[337375735,1725634252579,-500.0,0.0002,2]
[337375737,1725634252589,-500.0,0.0002,2]
[337375739,1725634252598,-1216.52,0.0002,2]
[337375741,1725634252608,-451.7,0.0002,2]
[337375743,1725634252619,-500.0,0.0002,2]
[337375745,1725634252629,-500.0,0.0002,2]
[337375747,1725634252639,-729.66,0.0002,2]
[337375749,1725634252649,-500.0,0.0002,2]
[337375751,1725634252660,-783.84,0.0002,2]
[337375753,1725634252669,-3175.26,0.0002,2]
[337375755,1725634252679,-500.0,0.0002,2]
[337375757,1725634252688,-1401.94,0.0002,2]
[337375759,1725634252702,-500.0,0.0002,2]
[337375761,1725634252711,-655.78,0.0002,2]
[337375764,1725634252723,-1350.29,0.0002,2]
[337375766,1725634252732,-500.0,0.0002,2]
[337375768,1725634252742,-500.0,0.0002,2]
[337375770,1725634252751,-1246.56,0.0002,2]
[337375772,1725634252761,-500.0,0.0002,2]
[337375774,1725634252771,-2842.06,0.0002,2]
[337375776,1725634252780,-500.0,0.0002,2]
[337375778,1725634252790,-500.0,0.0002,2]
[337375780,1725634252799,-2088.37,0.0002,2]
[337375782,1725634252809,-886.7,0.0002,2]
[337375784,1725634252819,-1641.91,0.0002,2]
[337375786,1725634252828,-732.84,0.0002,2]
[337375788,1725634252838,-500.0,0.0002,2]
[337375790,1725634252848,-500.0,0.0002,2]
[337375792,1725634252859,-500.0,0.0002,2]
[337375794,1725634252868,-596.56,0.0002,2]
[337375796,1725634252877,-795.53,0.0002,2]
[337375798,1725634252887,-634.84,0.0002,2]
[337375800,1725634252897,-2029.91,0.0002,2]
[337375802,1725634252906,-500.0,0.0002,2]
[337375804,1725634252916,-500.0,0.0002,2]
[337375806,1725634252926,-600.74,0.0002,2]
[337375808,1725634252935,-3541.11,0.0002,2]
[337375810,1725634252947,-500.0,0.0002,2]
[337375813,1725634252956,-500.0,0.0002,2]
[337375815,1725634252965,-500.0,0.0002,2]
[337375817,1725634252974,-560.78,0.0002,2]
[337375819,1725634252985,-1718.94,0.0002,2]
[337375821,1725634252995,-1009.09,0.0002,2]
[337375823,1725634253005,-500.0,0.0002,2]
[337375825,1725634253015,-500.0,0.0002,2]
[337375827,1725634253025,-500.0,0.0002,2]
[337375829,1725634253035,-2003.12,0.0002,2]
[337375831,1725634253046,-24757.26,0.0002,2]
[337375834,1725634253057,-1284.08,0.0002,2]
[337375836,1725634253066,-1919.44,0.0002,2]
[337375838,1725634253077,-500.0,0.0002,2]
[337375840,1725634253086,-2152.17,0.0002,2]
[337375842,1725634253096,-500.0,0.0002,2]
[337375844,1725634253106,-500.0,0.0002,2]
[337375846,1725634253116,-977.88,0.0002,2]
[337375848,1725634253126,-500.0,0.0002,2]
[337375850,1725634253137,-810.06,0.0002,2]
[337375852,1725634253148,-500.0,0.0002,2]
[337375854,1725634253158,-1619.94,0.0002,2]
[337375857,1725634253168,-2074.13,0.0002,2]
[337375858,1725634253177,-500.0,0.0002,2]
[337375861,1725634253187,-1822.06,0.0002,2]
[337375863,1725634253199,-682.06,0.0002,2]
[337375865,1725634253209,-61929.3,0.0002,2]
[337375867,1725634253219,-2136.09,0.0002,2]
[337375869,1725634253230,-1054.12,0.0002,2]
[337375871,1725634253239,-530.72,0.0002,2]
[337375873,1725634253249,-500.0,0.0002,2]
[337375875,1725634253259,-500.0,0.0002,2]
[337375877,1725634253268,-500.0,0.0002,2]
[337375879,1725634253278,-500.0,0.0002,2]
[337375886,1725634253351,-2282.79,0.0002,2]
[337375888,1725634253362,-1116.46,0.0002,2]
[337375890,1725634253373,-500.0,0.0002,2]
[337375892,1725634253382,-514.5965296,0.0002,2]
[337375894,1725634253392,-500.0,0.0002,2]
[337375896,1725634253402,-500.0,0.0002,2]
[337375898,1725634253411,-500.0,0.0002,2]
[337375899,1725634253421,-47567.92,0.0002,2]
[337375901,1725634253432,-500.0,0.0002,2]
[337375903,1725634253443,-608.17,0.0002,2]
[337375905,1725634253453,-500.0,0.0002,2]
[337375907,1725634253463,-500.0,0.0002,2]
[337375909,1725634253473,-500.0,0.0002,2]
[337375911,1725634253482,-1013.16,0.0002,2]
[337375912,1725634253491,-500.0,0.0002,2]
[337375914,1725634253502,-571.12,0.0002,2]
[337375916,1725634253513,-1576.49,0.0002,2]
[337375918,1725634253523,-500.0,0.0002,2]
[337375920,1725634253533,-500.0,0.0002,2]
[337375922,1725634253542,-500.0,0.0002,2]
[337375924,1725634253551,-6868.04,0.0002,2]
[337375926,1725634253560,-500.0,0.0002,2]
[337375927,1725634253569,-2764.07,0.0002,2]
[337375929,1725634253579,-2941.86,0.0002,2]
[337375931,1725634253588,-1389.96,0.0002,2]
[337375933,1725634253599,-1000.0,0.00020021,2]
[337375935,1725634253609,-1000.0,0.00020021,2]
[337375937,1725634253621,-500.0,0.00020273,2]
[337375939,1725634253631,-500.0,0.00020273,2]
[337375941,1725634253641,-588.48,0.00020273,2]
[337375943,1725634253650,-523.48,0.00020273,2]
[337375945,1725634253661,-500.0,0.00020273,2]
[337375946,1725634253671,-500.0,0.00020273,2]
[337375948,1725634253680,-500.0,0.00020273,2]
[337375950,1725634253690,-500.0,0.00020273,2]
[337375952,1725634253700,-500.0,0.00020273,2]
[337375953,1725634253709,-500.0,0.00020273,2]
[337375955,1725634253719,-500.0,0.00020273,2]
[337375957,1725634253728,-500.0,0.00020273,2]
[337375959,1725634253738,-458.07223644,0.00020273,2]
[337375961,1725634253748,-867.81,0.00020273,2]
[337375963,1725634253758,-500.0,0.00020273,2]
[337375965,1725634253768,-500.0,0.00020273,2]
[337375967,1725634253777,-500.0,0.00020273,2]
[337375969,1725634253787,-500.0,0.00020273,2]
[337375971,1725634253798,-500.0,0.00020273,2]
[337375973,1725634253807,-500.0,0.00020273,2]
[337375974,1725634253816,-500.0,0.00020273,2]
[337375976,1725634253826,-500.0,0.00020273,2]
[337375978,1725634253836,-251.0190514,0.00020273,2]
[337375980,1725634253846,-500.0,0.00020273,2]
[337375982,1725634253855,-500.0,0.00020273,2]
[337375984,1725634253864,-500.0,0.00020273,2]
[337375986,1725634253874,-780.63,0.00020273,2]
[337375987,1725634253883,-500.0,0.00020273,2]
[337375989,1725634253893,-500.0,0.00020273,2]
[337375991,1725634253903,-593.28750499,0.00020273,2]
[337375993,1725634253912,-500.0,0.00020273,2]
[337375995,1725634253922,-1013.92,0.00020273,2]
[337375997,1725634253931,-500.0,0.00020273,2]
[337375999,1725634253942,-968.79,0.00020273,2]
[337376001,1725634253952,-500.0,0.00020273,2]
[337376002,1725634253962,-507.47526896,0.00020273,2]
[337376004,1725634253973,-503.24,0.00020273,2]
[337376006,1725634253983,-500.0,0.00020273,2]
[337376008,1725634253993,-664.17,0.00020273,2]
[337376010,1725634254002,-500.0,0.00020273,2]
[337376012,1725634254013,-804.61,0.00020273,2]
[337376014,1725634254024,-500.0,0.00020273,2]
[337376016,1725634254035,-500.0,0.00020273,2]
[337376018,1725634254045,-500.0,0.00020273,2]
[337376019,1725634254054,-500.0,0.00020273,2]
[337376021,1725634254064,-1044.32,0.00020273,2]
[337376023,1725634254074,-519.26,0.00020273,2]
[337376025,1725634254084,-500.0,0.00020273,2]
[337376027,1725634254093,-702.36,0.00020273,2]
[337376029,1725634254103,-679.13,0.00020273,2]
[337376031,1725634254113,-500.0,0.00020273,2]
[337376032,1725634254122,-1006.9,0.00020273,2]
[337376034,1725634254131,-580.89,0.00020273,2]
[337376036,1725634254141,-500.0,0.00020273,2]
[337376038,1725634254154,-500.0,0.00020273,2]
[337376040,1725634254164,-500.0,0.00020273,2]
[337376042,1725634254174,-587.02,0.00020273,2]
[337376044,1725634254184,-500.0,0.00020273,2]
[337376046,1725634254195,-500.0,0.00020273,2]
[337376048,1725634254205,-500.0,0.00020273,2]
[337376049,1725634254214,-500.0,0.00020273,2]
[337376051,1725634254224,-500.0,0.00020273,2]
[337376053,1725634254234,-500.0,0.00020273,2]
[337376055,1725634254245,-928.12,0.00020273,2]
[337376057,1725634254255,-500.0,0.00020273,2]
[337376059,1725634254265,-500.0,0.00020273,2]
[337376061,1725634254275,-500.0,0.00020273,2]
[337376063,1725634254285,-762.63,0.00020273,2]
[337376064,1725634254299,-500.0,0.00020273,2]
[337376066,1725634254309,-500.0,0.00020273,2]
[337376068,1725634254318,-500.0,0.00020273,2]
[337376070,1725634254328,-500.0,0.00020273,2]
[337376072,1725634254339,-500.0,0.00020273,2]
[337376074,1725634254350,-1107.21,0.00020273,2]
[337376076,1725634254359,-500.0,0.00020273,2]
[337376077,1725634254371,-500.0,0.00020273,2]
[337376079,1725634254380,-742.7,0.00020273,2]
[337376081,1725634254390,-509.63,0.00020273,2]
[337376083,1725634254400,-151.0,0.00020273,2]
[337376085,1725634254409,-806.17,0.00020273,2]
[337376087,1725634254419,-1025.63,0.00020273,2]
[337376089,1725634254429,-1110.12,0.00020273,2]
[337376091,1725634254438,-151.0,0.00020273,2]
[337376092,1725634254453,-500.0,0.00020273,2]
[337376094,1725634254463,-500.0,0.00020273,2]
[337376096,1725634254472,-500.0,0.00020273,2]
[337376098,1725634254482,-1341.74,0.00020273,2]
[337376100,1725634254491,-500.0,0.00020273,2]
[337376102,1725634254501,-500.0,0.00020273,2]
[337376104,1725634254512,-500.0,0.00020273,2]
[337376106,1725634254521,-500.0,0.00020273,2]
[337376108,1725634254531,-1912.01,0.00020273,2]
[337376110,1725634254541,-500.0,0.00020273,2]
[337376112,1725634254551,-500.0,0.00020273,2]
[337376114,1725634254561,-560.53,0.00020273,2]
[337376115,1725634254570,-500.0,0.00020273,2]
[337376117,1725634254581,-500.0,0.00020273,2]
[337376120,1725634254592,-993.14,0.00020273,2]
[337376122,1725634254605,-500.0,0.00020273,2]
[337376123,1725634254615,-500.0,0.00020273,2]
[337376125,1725634254625,-936.3,0.00020273,2]
[337376127,1725634254637,-500.0,0.00020273,2]
[337376129,1725634254646,-1292.57,0.00020273,2]
[337376131,1725634254656,-867.01,0.00020273,2]
[337376133,1725634254666,-515.26,0.00020273,2]
[337376135,1725634254675,-500.0,0.00020273,2]
[337376136,1725634254685,-1139.41,0.00020273,2]
[337376138,1725634254696,-693.45,0.00020273,2]
[337376140,1725634254705,-606.89,0.00020273,2]
[337376142,1725634254715,-727.28,0.00020273,2]
[337376144,1725634254726,-500.0,0.00020273,2]
[337376146,1725634254736,-1451.96,0.00020273,2]
[337376148,1725634254746,-62882.5,0.00020273,2]
[337376150,1725634254756,-500.0,0.00020273,2]
[337376152,1725634254766,-500.0,0.00020273,2]
[337376154,1725634254775,-1617.36,0.00020273,2]
[337376155,1725634254784,-500.0,0.00020273,2]
[337376157,1725634254793,-743.58,0.00020273,2]
[337376159,1725634254804,-500.0,0.00020273,2]
[337376161,1725634254815,-1351.51,0.00020273,2]
[337376163,1725634254825,-1041.86,0.00020273,2]
[337376165,1725634254835,-500.0,0.00020273,2]
[337376167,1725634254847,-1721.2,0.00020273,2]
[337376169,1725634254857,-500.0,0.00020273,2]
[337376171,1725634254866,-500.0,0.00020273,2]
[337376173,1725634254876,-4605.35,0.00020273,2]
[337376175,1725634254885,-1114.14,0.00020273,2]
[337376177,1725634254894,-1017.62,0.00020273,2]
[337376178,1725634254903,-500.0,0.00020273,2]
[337376180,1725634254913,-500.0,0.00020273,2]
[337376182,1725634254922,-500.0,0.00020273,2]
[337376184,1725634254932,-1507.48,0.00020273,2]
[337376186,1725634254944,-1086.64,0.00020273,2]
[337376188,1725634254954,-1118.55,0.00020273,2]
[337376190,1725634254963,-500.0,0.00020273,2]
[337376192,1725634254972,-1850.56,0.00020273,2]
[337376193,1725634254982,-1084.25,0.00020273,2]
[337376195,1725634254992,-1624.76,0.00020273,2]
[337376197,1725634255002,-530.32,0.00020273,2]
[337376199,1725634255011,-456.71279475,0.00020273,2]
[337376201,1725634255023,-500.0,0.00020273,2]
[337376203,1725634255032,-500.0,0.00020273,2]
[337376205,1725634255042,-1063.88,0.00020273,2]
[337376207,1725634255054,-500.0,0.00020273,2]
[337376209,1725634255064,-500.0,0.00020273,2]
[337376210,1725634255073,-500.0,0.00020273,2]
[337376212,1725634255082,-500.0,0.00020273,2]
[337376214,1725634255091,-500.0,0.00020273,2]
[337376216,1725634255101,-1178.58,0.00020273,2]
[337376218,1725634255110,-984.17,0.00020273,2]
[337376219,1725634255120,-500.0,0.00020273,2]
[337376221,1725634255129,-1669.57,0.00020273,2]
[337376223,1725634255138,-774.33,0.00020273,2]
[337376225,1725634255147,-171.37192216,0.00020273,2]
[337376227,1725634255156,-500.0,0.00020273,2]
[337376229,1725634255166,-151.0,0.00020273,2]
[337376231,1725634255176,-1002.38,0.00020273,2]
[337376232,1725634255185,-636.46,0.00020273,2]
[337376234,1725634255198,-753.25,0.00020273,2]
[337376236,1725634255208,-500.0,0.00020273,2]
[337376238,1725634255217,-521.35,0.00020273,2]
[337376240,1725634255227,-711.03,0.00020273,2]
[337376242,1725634255236,-151.0,0.00020273,2]
[337376244,1725634255246,-500.0,0.00020273,2]
[337376246,1725634255256,-500.0,0.00020273,2]
[337376248,1725634255266,-500.0,0.00020273,2]
[337376249,1725634255275,-500.0,0.00020273,2]
[337376251,1725634255285,-151.0,0.00020273,2]
[337376253,1725634255295,-643.68,0.00020273,2]
[337376255,1725634255305,-777.43137,0.00020273,2]
[337376257,1725634255314,-1297.23,0.00020273,2]
[337376259,1725634255324,-500.0,0.00020273,2]
[337376261,1725634255335,-917.27,0.00020273,2]
[337376262,1725634255345,-500.0,0.00020273,2]
[337376264,1725634255354,-532.23021381,0.00020273,2]
[337376266,1725634255364,-777.43137,0.00020273,2]
[337376268,1725634255374,-500.0,0.00020273,2]
[337376270,1725634255384,-500.0,0.00020273,2]
[337376272,1725634255393,-1216.52,0.00020273,2]
[337376274,1725634255409,-500.0,0.00020273,2]
[337376277,1725634255423,-500.0,0.00020273,2]
[337376279,1725634255433,-729.66,0.00020273,2]
[337376280,1725634255444,-500.0,0.00020273,2]
[337376282,1725634255454,-783.84,0.00020273,2]
[337376284,1725634255464,-3175.26,0.00020273,2]
[337376286,1725634255474,-500.0,0.00020273,2]
[337376288,1725634255483,-1401.94,0.00020273,2]
[337376290,1725634255492,-500.0,0.00020273,2]
[337376292,1725634255502,-187.408427,0.00020273,2]
[337376294,1725634255511,-655.78,0.00020273,2]
[337376296,1725634255521,-1350.29,0.00020273,2]
[337376298,1725634255530,-187.408427,0.00020273,2]
[337376300,1725634255540,-500.0,0.00020273,2]
[337376301,1725634255550,-500.0,0.00020273,2]
[337376303,1725634255560,-1246.56,0.00020273,2]
[337376305,1725634255570,-500.0,0.00020273,2]
[337376307,1725634255580,-2842.06,0.00020273,2]
[337376309,1725634255590,-500.0,0.00020273,2]
[337376311,1725634255599,-500.0,0.00020273,2]
[337376313,1725634255608,-2088.37,0.00020273,2]
[337376315,1725634255618,-886.7,0.00020273,2]
[337376317,1725634255628,-1641.91,0.00020273,2]
[337376319,1725634255638,-732.84,0.00020273,2]
[337376320,1725634255648,-500.0,0.00020273,2]
[337376322,1725634255659,-500.0,0.00020273,2]
[337376324,1725634255668,-500.0,0.00020273,2]
[337376326,1725634255678,-596.56,0.00020273,2]
[337376328,1725634255688,-795.53,0.00020273,2]
[337376330,1725634255700,-2029.91,0.00020273,2]
[337376332,1725634255709,-634.84,0.00020273,2]
[337376334,1725634255719,-160.733394,0.00020273,2]
[337376336,1725634255728,-500.0,0.00020273,2]
[337376338,1725634255737,-600.74,0.00020273,2]
[337376340,1725634255747,-3541.11,0.00020273,2]
[337376342,1725634255757,-160.733394,0.00020273,2]
[337376344,1725634255767,-500.0,0.00020273,2]
[337376345,1725634255777,-500.0,0.00020273,2]
[337376347,1725634255787,-500.0,0.00020273,2]
[337376349,1725634255797,-151.0,0.00020273,2]
[337376351,1725634255806,-560.78,0.00020273,2]
[337376353,1725634255817,-1718.94,0.00020273,2]
[337376355,1725634255827,-1009.09,0.00020273,2]
[337376357,1725634255837,-151.0,0.00020273,2]
[337376359,1725634255847,-500.0,0.00020273,2]
[337376361,1725634255856,-500.0,0.00020273,2]
[337376363,1725634255866,-500.0,0.00020273,2]
[337376365,1725634255876,-2003.12,0.00020273,2]
[337376366,1725634255886,-24757.26,0.00020273,2]
[337376368,1725634255897,-1284.08,0.00020273,2]
[337376370,1725634255907,-1919.44,0.00020273,2]
[337376372,1725634255918,-500.0,0.00020273,2]
[337376374,1725634255929,-151.0,0.00020273,2]
[337376376,1725634255939,-2152.17,0.00020273,2]
[337376378,1725634255953,-500.0,0.00020273,2]
[337376380,1725634255964,-151.0,0.00020273,2]
[337376382,1725634255975,-500.0,0.00020273,2]
[337376384,1725634255985,-977.88,0.00020273,2]
[337376386,1725634255996,-895.372438,0.00020273,2]
[337376388,1725634256008,-500.0,0.00020273,2]
[337376389,1725634256019,-810.06,0.00020273,2]
[337376391,1725634256032,-895.372438,0.00020273,2]
[337376394,1725634256047,-500.0,0.00020273,2]
[337376396,1725634256060,-1619.94,0.00020273,2]
[337376397,1725634256072,-2074.13,0.00020273,2]
[337376399,1725634256084,-500.0,0.00020273,2]
[337376401,1725634256096,-1822.06,0.00020273,2]
[337376403,1725634256107,-682.06,0.00020273,2]
[337376405,1725634256119,-51490.04317484,0.00020273,2]
[337376485,1725634257374,-500.0,0.00019178,2]
[337376488,1725634257396,-500.0,0.00019452,2]
[337376491,1725634257410,-150.0,0.00019627,2]
[337376493,1725634257421,-500.0,0.0002,2]
[337376495,1725634257432,-10277.21867,0.00020273,2]
[337376497,1725634257451,-162.03815516,0.00020273,2]
[337376499,1725634257462,-2136.09,0.00020273,2]
[337376501,1725634257473,-1054.12,0.00020273,2]
[337376504,1725634257484,-530.72,0.00020273,2]
[337376506,1725634257497,-500.0,0.00020273,2]
[337376508,1725634257508,-500.0,0.00020273,2]
[337376510,1725634257519,-500.0,0.00020273,2]
[337376512,1725634257530,-500.0,0.00020273,2]
[337376514,1725634257541,-2282.79,0.00020273,2]
[337376516,1725634257552,-1116.46,0.00020273,2]
[337376518,1725634257562,-500.0,0.00020273,2]
[337376520,1725634257573,-500.0,0.00020273,2]
[337376523,1725634257583,-500.0,0.00020273,2]
[337376525,1725634257595,-500.0,0.00020273,2]
[337376527,1725634257606,-47567.92,0.00020273,2]
[337376529,1725634257619,-500.0,0.00020273,2]
[337376531,1725634257630,-608.17,0.00020273,2]
[337376534,1725634257641,-500.0,0.00020273,2]
[337376536,1725634257652,-340.32364649,0.00020273,2]
[337376538,1725634257663,-500.0,0.00020273,2]
[337376540,1725634257673,-1013.16,0.00020273,2]
[337376542,1725634257684,-567.46341613,0.00020273,2]
[337376545,1725634257698,-571.12,0.00020273,2]
[337376547,1725634257708,-1576.49,0.00020273,2]
[337376549,1725634257718,-500.0,0.00020273,2]
[337376551,1725634257728,-500.0,0.00020273,2]
[337376553,1725634257741,-500.0,0.00020273,2]
[337376555,1725634257751,-500.0,0.00020273,2]
[337376557,1725634257762,-6868.04,0.00020273,2]
[337376559,1725634257774,-2764.07,0.00020273,2]
[337376561,1725634257785,-2941.86,0.00020273,2]
[337376563,1725634257795,-1389.96,0.00020273,2]
[337376565,1725634257806,-500.0,0.00020273,2]
[337376568,1725634257816,-3781.61257748,0.000204,2]
[337376570,1725634257827,-3781.61257746,0.000204,2]
[337376572,1725634257837,-3781.61257746,0.000204,2]
[337376574,1725634257848,-3781.61257746,0.000204,2]
[337376576,1725634257858,-151.0,0.000204,2]
[337376578,1725634257869,-151.0,0.000204,2]
[337376580,1725634257880,-876.393564,0.000204,2]
[337376582,1725634257890,-876.393564,0.000204,2]
[337376584,1725634257901,-151.0,0.000204,2]
[337376586,1725634257912,-151.0,0.000204,2]
[337376588,1725634257922,-240.676488,0.000204,2]
[337376590,1725634257932,-2460.311527,0.000204,2]
[337376592,1725634257944,-2460.311527,0.000204,2]
[337376594,1725634257956,-3119.08702818,0.00020541,2]